bitfinex-derivatives/quotes_BTCF0:USTF0_20250505
["timestamp","ask_amount","ask_price","bid_price","bid_amount"]
[1746473568988,0.2122283,94689.0,94688.0,0.12]
[1746473570093,0.2112394,94684.0,94683.0,0.2112401]
[1746473570292,0.5720394,94684.0,94683.0,0.2112401]
[1746473571093,0.6352394,94684.0,94683.0,0.3322401]
[1746473571687,0.6352394,94684.0,94683.0,0.3627401]
[1746473574483,0.6352394,94684.0,94683.0,0.1515]
[1746473574792,0.6352394,94684.0,94683.0,0.3627417]
[1746473574990,0.0632,94684.0,94683.0,0.3627417]
[1746473575191,0.16076148,94693.0,94683.0,0.1515]
[1746473575394,0.0528054,94692.0,94689.0,0.2112278]
[1746473575594,0.0528054,94692.0,94690.0,0.0621]
[1746473576097,0.2112238,94691.0,94690.0,0.1821]
[1746473576291,0.2443238,94691.0,94690.0,0.1821]
[1746473576487,0.2745238,94691.0,94690.0,0.1821]
[1746473577397,0.2755238,94691.0,94690.0,0.1821]
[1746473578294,0.2755238,94691.0,94690.0,0.3616261]
[1746473578491,0.2765238,94691.0,94690.0,0.3616261]
[1746473579291,0.2765238,94691.0,94690.0,0.1504]
[1746473579486,0.2765238,94691.0,94690.0,0.12]
[1746473579684,0.2765238,94691.0,94690.0,0.153]
[1746473579889,0.2765238,94691.0,94690.0,0.3642261]
[1746473580090,0.2765238,94691.0,94690.0,0.153]
[1746473580287,0.2765238,94691.0,94690.0,0.12]
[1746473582190,0.2112372,94685.0,94684.0,0.2112379]
[1746473582992,0.2738372,94685.0,94684.0,0.2112379]
[1746473583194,0.2738372,94685.0,94684.0,0.3312379]
[1746473584299,0.2738372,94685.0,94684.0,0.12]
[1746473586206,0.2738372,94685.0,94679.0,0.0301]
[1746473586207,0.2112484,94680.0,94679.0,0.0301]
[1746473586511,0.5720484,94680.0,94679.0,0.0301]
[1746473587203,0.6342484,94680.0,94679.0,0.12]
[1746473587508,0.6342484,94680.0,94679.0,0.121]
[1746473588802,0.6342484,94680.0,94679.0,0.122]
[1746473593202,0.6342484,94680.0,94679.0,0.002]
[1746473594308,0.7398684,94680.0,94679.0,0.002]
[1746473595307,0.2112729,94669.0,94668.0,0.0308]
[1746473595506,0.5720729,94669.0,94668.0,0.0308]
[1746473596104,0.5720729,94669.0,94668.0,0.1508]
[1746473596312,0.5720729,94669.0,94668.0,0.124]
[1746473596610,0.5720729,94669.0,94668.0,0.128]
[1746473599110,0.5720729,94669.0,94668.0,0.124]
[1746473599313,0.5720729,94669.0,94668.0,0.127]
[1746473599517,0.5770729,94669.0,94668.0,0.123]
[1746473599808,0.5770729,94669.0,94668.0,0.12]
[1746473600011,0.5820729,94669.0,94668.0,0.12]
[1746473602111,0.58206375,94669.0,94642.0,0.00158491]
[1746473602411,0.2113287,94644.0,94643.0,0.0323]
[1746473602613,0.2113287,94644.0,94643.0,0.0626]
[1746473602809,0.2113287,94644.0,94616.0,0.0528476]
[1746473602810,0.5283275,94643.0,94616.0,0.0528476]
[1746473603005,0.21136,94630.0,94629.0,0.0642]
[1746473603203,0.21136,94630.0,94614.0,0.21264848]
[1746473603204,0.2113689,94626.0,94625.0,0.0673919]
[1746473603814,0.2103689,94626.0,94625.0,0.0673919]
[1746473604607,0.2103689,94626.0,94625.0,0.0723919]
[1746473604811,0.2753689,94626.0,94625.0,0.0723919]
[1746473605723,0.2103689,94626.0,94625.0,0.0723919]
[1746473606015,0.2103689,94626.0,94625.0,0.0673919]
[1746473607016,0.2103689,94626.0,94625.0,0.1313919]
[1746473615515,0.2103689,94626.0,94625.0,0.3427631]
[1746473616524,0.2092689,94626.0,94625.0,0.3427631]
[1746473619825,0.2113665,94628.0,94627.0,0.2113645]
[1746473620127,0.2113689,94627.0,94626.0,0.2113682]
[1746473620726,0.2113689,94627.0,94626.0,0.0654]
[1746473620914,0.2434689,94627.0,94626.0,0.0654]
[1746473621118,0.2434689,94627.0,94626.0,0.1854]
[1746473621313,0.2434689,94627.0,94626.0,0.3967689]
[1746473621718,0.2444689,94627.0,94626.0,0.3967689]
[1746473622019,0.2454689,94627.0,94626.0,0.3967689]
[1746473622224,0.2133689,94627.0,94626.0,0.3967689]
[1746473623429,0.2133689,94627.0,94626.0,0.1854]
[1746473624727,0.2133689,94627.0,94626.0,0.3967689]
[1746473624929,0.2459689,94627.0,94626.0,0.3967689]
[1746473625227,0.2133689,94627.0,94626.0,0.3967689]
[1746473628829,0.21318588,94627.0,94626.0,0.3967689]
[1746473629019,0.24588588,94627.0,94626.0,0.3967689]
[1746473629830,0.24588588,94627.0,94626.0,0.4297689]
[1746473631829,0.002,94627.0,94626.0,0.4297689]
[1746473639635,0.0329,94627.0,94626.0,0.4297689]
[1746473645136,0.2442667,94627.0,94626.0,0.4297689]
[1746473645532,0.2442667,94627.0,94626.0,0.12]
[1746473646140,0.2113868,94618.0,94617.0,0.2113883]
[1746473646332,0.5721868,94618.0,94617.0,0.2113883]
[1746473646731,0.5721868,94618.0,94617.0,0.2418883]
[1746473646933,0.6038868,94618.0,94617.0,0.2719883]
[1746473647135,0.6038868,94618.0,94617.0,0.3919883]
[1746473647741,0.6038868,94618.0,94617.0,0.3929883]
[1746473648943,0.6038868,94618.0,94617.0,0.3939883]
[1746473652442,0.6038868,94618.0,94617.0,0.3634883]
[1746473652644,0.6344868,94618.0,94617.0,0.3634883]
[1746473652847,0.6344868,94618.0,94617.0,0.122]
[1746473655938,0.6344868,94618.0,94617.0,0.333389]
[1746473656136,0.67817376,94618.0,94617.0,0.333389]
[1746473658949,0.67817376,94618.0,94617.0,0.122]
[1746473660748,0.67817376,94618.0,94617.0,0.333389]
[1746473662047,0.67817376,94618.0,94617.0,0.122]
[1746473662243,0.67817376,94618.0,94617.0,0.333389]
[1746473663145,0.67817376,94618.0,94617.0,0.364689]
[1746473663350,0.64757376,94618.0,94617.0,0.364689]
[1746473664443,0.28677376,94618.0,94617.0,0.364689]
[1746473664643,0.07538696,94618.0,94617.0,0.364689]
[1746473665148,0.28677376,94618.0,94617.0,0.364689]
[1746473667350,0.2430868,94618.0,94617.0,0.364689]
[1746473676171,0.37683932,94618.0,94617.0,0.364689]
[1746473680766,0.2867728,94618.0,94617.0,0.364689]
[1746473690865,0.075386,94618.0,94617.0,0.725489]
[1746473691071,0.043686,94618.0,94617.0,0.725489]
[1746473694573,0.16073014,94618.0,94617.0,0.725489]
[1746473695083,0.19393014,94618.0,94617.0,0.725489]
[1746473696889,0.16073014,94618.0,94617.0,0.790729]
[1746473697279,0.19273014,94618.0,94617.0,0.790729]
[1746473698087,0.075686,94618.0,94617.0,0.790729]
[1746473701083,0.2870728,94618.0,94617.0,0.790729]
[1746473701287,0.075686,94618.0,94617.0,0.790729]
[1746473702483,0.032,94618.0,94617.0,0.790729]
[1746473703492,0.2433868,94618.0,94617.0,0.790729]
[1746473703692,0.032,94618.0,94617.0,0.790729]
[1746473708988,0.07568339,94618.0,94617.0,0.790729]
[1746473709589,0.04368339,94618.0,94617.0,0.790729]
[1746473713498,0.16069607,94618.0,94617.0,0.790729]
[1746473714190,0.02509291,94625.0,94624.0,0.2113734]
[1746473714495,0.15198475,94634.0,94633.0,0.2113533]
[1746473715195,0.15198475,94634.0,94633.0,0.3313533]
[1746473715897,0.15398475,94634.0,94633.0,0.3313533]
[1746473716289,0.15598475,94634.0,94633.0,0.3313533]
[1746473716490,0.15598475,94634.0,94633.0,0.3619533]
[1746473717093,0.18848475,94634.0,94633.0,0.3619533]
[1746473717293,0.0365,94634.0,94633.0,0.3619533]
[1746473727204,0.0365,94634.0,94633.0,0.7227533]
[1746473735008,0.0694,94634.0,94633.0,0.7227533]
[1746473742922,0.20333754,94634.0,94633.0,0.7227533]
[1746473745319,0.20333754,94634.0,94633.0,0.7875533]
[1746473746418,0.20333754,94634.0,94633.0,0.8187533]
[1746473746827,0.23002665,94634.0,94633.0,0.8187533]
[1746473750742,0.0694,94634.0,94633.0,0.8187533]
[1746473754134,0.0694,94634.0,94633.0,0.4579533]
[1746473754439,0.0694,94634.0,94633.0,0.8187533]
[1746473754834,0.0365,94634.0,94633.0,0.8187533]
[1746473755845,0.0365,94634.0,94633.0,0.7539533]
[1746473756042,0.0365,94634.0,94633.0,0.8185133]
[1746473759638,0.16062665,94638.0,94637.0,0.2113443]
[1746473760137,0.16062665,94638.0,94637.0,0.3951443]
[1746473761036,0.16362665,94638.0,94637.0,0.3951443]
[1746473761445,0.003,94638.0,94637.0,0.3951443]
[1746473761843,0.005,94638.0,94637.0,0.3951443]
[1746473763538,0.005,94638.0,94637.0,0.7559443]
[1746473770345,0.005,94638.0,94637.0,0.3313443]
[1746473770845,0.0685,94638.0,94637.0,0.3313443]
[1746473772144,0.0685,94638.0,94637.0,0.3959043]
[1746473773644,0.0375,94638.0,94637.0,0.3959043]
[1746473773839,0.0375,94638.0,94637.0,0.4936043]
[1746473775844,0.15276847,94644.0,94643.0,0.211331]
[1746473776355,0.15276847,94644.0,94643.0,0.331331]
[1746473776756,0.15276847,94644.0,94643.0,0.394431]
[1746473777741,0.15276847,94644.0,94643.0,0.395431]
[1746473778445,0.15276847,94644.0,94643.0,0.397431]
[1746473778756,0.064,94650.0,94649.0,0.2113176]
[1746473779055,0.064,94650.0,94649.0,0.5721176]
[1746473779256,0.064,94650.0,94649.0,0.6921176]
[1746473780348,0.0314,94651.0,94650.0,0.2113153]
[1746473780554,0.0314,94651.0,94650.0,0.31735073]
[1746473780756,0.0314,94651.0,94650.0,0.37955073]
[1746473780964,0.0314,94651.0,94650.0,0.34855073]
[1746473781254,0.0314,94651.0,94650.0,0.46855073]
[1746473781455,0.0324,94651.0,94650.0,0.46855073]
[1746473782656,0.0334,94651.0,94650.0,0.46855073]
[1746473783355,0.0652,94651.0,94650.0,0.46855073]
[1746473783559,0.1088686,94651.0,94650.0,0.46855073]
[1746473785357,0.18730063,94657.0,94652.0,0.0528271]
[1746473785562,0.14051186,94657.0,94656.0,0.2113019]
[1746473786360,0.21348033,94665.0,94656.0,0.23354954]
[1746473786659,0.18237033,94665.0,94664.0,0.5720841]
[1746473786863,0.18237033,94665.0,94664.0,0.6366841]
[1746473787252,0.18237033,94665.0,94664.0,0.7566841]
[1746473787456,0.106556,94667.0,94666.0,0.2112796]
[1746473787647,0.106556,94667.0,94666.0,0.5720796]
[1746473788053,0.106556,94667.0,94666.0,0.6920796]
[1746473789663,0.107556,94667.0,94666.0,0.6920796]
[1746473790562,0.109556,94667.0,94666.0,0.6920796]
[1746473792464,0.11004983,94667.0,94666.0,0.6920796]
[1746473795167,0.003,94667.0,94666.0,0.6920796]
[1746473798466,0.10704983,94670.0,94669.0,0.2112729]
[1746473799168,0.13381229,94671.0,94670.0,0.2640878]
[1746473799367,0.13381229,94671.0,94670.0,0.2945878]
[1746473800168,0.13381229,94671.0,94670.0,0.4145878]
[1746473800870,0.13581229,94671.0,94670.0,0.4145878]
[1746473801768,0.13681229,94671.0,94670.0,0.4145878]
[1746473802769,0.003,94671.0,94670.0,0.4145878]
[1746473803068,0.003,94671.0,94670.0,1.1361878]
[1746473803260,0.0342,94671.0,94670.0,1.1361878]
[1746473804766,0.0342,94671.0,94670.0,1.1680878]
[1746473805569,0.11532228,94672.0,94671.0,0.2112684]
[1746473805757,0.11532228,94672.0,94671.0,0.2754684]
[1746473806073,0.10698041,94675.0,94674.0,0.2112618]
[1746473807165,0.10698041,94675.0,94674.0,0.3312618]
[1746473807358,0.10798041,94675.0,94674.0,0.3312618]
[1746473808774,0.10898041,94675.0,94674.0,0.3312618]
[1746473808976,0.14058041,94675.0,94674.0,0.3312618]
[1746473810073,0.0336,94675.0,94674.0,0.3312618]
[1746473811268,0.16038445,94688.0,94685.0,0.2112372]
[1746473811574,0.062,94687.0,94685.0,0.6366372]
[1746473811966,0.0323,94686.0,94685.0,0.6366372]
[1746473812366,0.0343,94686.0,94685.0,0.6366372]
[1746473812575,0.0649,94686.0,94685.0,0.6366372]
[1746473813572,0.0679,94686.0,94685.0,0.6366372]
[1746473814477,0.0679,94686.0,94685.0,0.64711614]
[1746473818282,0.0679,94686.0,94685.0,0.76711614]
[1746473819079,0.0679,94686.0,94685.0,0.64711614]
[1746473820075,0.0679,94686.0,94685.0,0.76711614]
[1746473824882,0.0679,94686.0,94685.0,0.79811614]
[1746473827189,0.279135,94686.0,94685.0,0.1846]
[1746473827578,0.279135,94686.0,94685.0,0.3958372]
[1746473828179,0.279135,94686.0,94685.0,0.2758372]
[1746473829582,0.279135,94686.0,94685.0,0.3060372]
[1746473829785,0.0679,94686.0,94685.0,0.3060372]
[1746473830185,0.0679,94686.0,94685.0,0.4260372]
[1746473831888,0.0679,94686.0,94685.0,0.3614372]
[1746473835394,0.279135,94686.0,94685.0,0.3614372]
[1746473835886,0.279135,94686.0,94685.0,0.12]
[1746473836083,0.279135,94686.0,94685.0,0.2112372]
[1746473836494,0.279135,94686.0,94685.0,0.2443372]
[1746473841493,0.0679,94686.0,94685.0,0.2443372]
[1746473841697,0.0679,94686.0,94685.0,0.2749372]
[1746473847096,0.0679,94686.0,94685.0,0.3949372]
[1746473847499,0.0659,94686.0,94685.0,0.3949372]
[1746473847703,0.0679,94686.0,94685.0,0.3949372]
[1746473848205,0.0679,94686.0,94685.0,0.2749372]
[1746473849198,0.0669,94686.0,94685.0,0.2749372]
[1746473850099,0.005,94686.0,94685.0,0.2749372]
[1746473850303,0.005,94686.0,94685.0,0.3949372]
[1746473859204,0.0362,94686.0,94685.0,0.3949372]
[1746473863012,0.005,94686.0,94685.0,0.3949372]
[1746473866314,0.0675,94686.0,94685.0,0.3949372]
[1746473868408,0.2787561,94686.0,94685.0,0.3949372]
[1746473868812,0.0675,94686.0,94685.0,0.3949372]
[1746473869814,0.2787561,94686.0,94685.0,0.3949372]
[1746473870315,0.0675,94686.0,94685.0,0.3949372]
[1746473870805,0.0675,94686.0,94680.0,0.0312]
[1746473870806,0.173112,94686.0,94673.0,0.06448]
[1746473871020,0.2112896,94671.0,94670.0,0.2757689]
[1746473871217,0.2112869,94673.0,94672.0,0.2112873]
[1746473871418,0.0328,94673.0,94672.0,0.2112873]
[1746473872122,0.0328,94673.0,94672.0,0.3312873]
[1746473872820,0.0328,94673.0,94672.0,0.34203213]
[1746473873212,0.2440851,94673.0,94672.0,0.13174483]
[1746473873414,0.34971311,94673.0,94672.0,0.121]
[1746473874018,0.34971311,94673.0,94672.0,0.122]
[1746473874218,0.34971311,94673.0,94672.0,0.002]
[1746473874820,0.14042801,94673.0,94632.0,0.3608]
[1746473875120,0.2113521,94643.0,94642.0,0.00158491]
[1746473875319,0.5721521,94643.0,94642.0,0.00158491]
[1746473875518,0.5721521,94643.0,94642.0,0.21293921]
[1746473875722,0.3608,94643.0,94642.0,0.21293921]
[1746473876223,0.3608,94643.0,94642.0,0.12158491]
[1746473876426,0.3578,94643.0,94642.0,0.36463921]
[1746473876721,0.3538,94643.0,94642.0,0.15328491]
[1746473876924,0.5967521,94643.0,94642.0,0.15328491]
[1746473877119,0.3854,94643.0,94642.0,0.36463921]
[1746473877321,0.3854,94643.0,94642.0,0.36963921]
[1746473877520,0.5967521,94643.0,94642.0,0.15828491]
[1746473877932,0.5967521,94643.0,94642.0,0.16892175]
[1746473878426,0.5967521,94643.0,94642.0,0.17192175]
[1746473879217,0.5967521,94643.0,94642.0,0.16992175]
[1746473879418,0.3854,94643.0,94642.0,0.16992175]
[1746473879725,0.3854,94643.0,94642.0,0.38127605]
[1746473879928,0.3854,94643.0,94642.0,0.37827605]
[1746473881927,0.5967521,94643.0,94642.0,0.16692175]
[1746473883520,0.5967521,94643.0,94642.0,0.15628491]
[1746473883728,0.5967521,94643.0,94642.0,0.12458491]
[1746473884129,0.5967521,94643.0,94642.0,0.00458491]
[1746473884325,0.5967521,94643.0,94642.0,0.01494286]
[1746473884526,0.5967521,94643.0,94642.0,0.00458491]
[1746473885022,0.6272521,94643.0,94642.0,0.00458491]
[1746473885222,0.6272521,94643.0,94642.0,0.21593921]
[1746473885424,0.6579521,94643.0,94642.0,0.21593921]
[1746473887531,0.6579521,94643.0,94642.0,0.00458491]
[1746473888034,0.6579521,94643.0,94642.0,0.21593921]
[1746473888234,0.6579521,94643.0,94642.0,0.36813921]
[1746473889733,0.00809747,94644.0,94643.0,0.2113521]
[1746473889734,0.36889747,94644.0,94643.0,0.2113521]
[1746473889930,0.3608,94644.0,94643.0,0.2113521]
[1746473890130,0.3608,94644.0,94643.0,0.3945521]
[1746473890834,0.3608,94644.0,94643.0,0.3955521]
[1746473891336,0.3608,94644.0,94643.0,0.3965521]
[1746473891733,0.13388963,94650.0,94649.0,0.2113387]
[1746473892130,0.13388963,94650.0,94649.0,0.3313387]
[1746473892638,0.13388963,94650.0,94649.0,0.3944387]
[1746473893932,0.10684897,94652.0,94651.0,0.2641672]
[1746473894137,0.10684897,94652.0,94651.0,0.4472672]
[1746473895040,0.10684897,94652.0,94651.0,0.3944342]
[1746473897339,0.3608,94654.0,94653.0,0.2113298]
[1746473898134,0.3608,94654.0,94653.0,0.3313298]
[1746473898645,0.3628,94654.0,94653.0,0.3313298]
[1746473900042,0.40646959,94654.0,94653.0,0.3313298]
[1746473900635,0.61779709,94654.0,94653.0,0.1828]
[1746473901044,0.61779709,94654.0,94653.0,0.3941298]
[1746473901538,0.43796959,94654.0,94653.0,0.3941298]
[1746473902941,0.43796959,94654.0,94653.0,0.1828]
[1746473903137,0.68019709,94654.0,94653.0,0.1526]
[1746473903537,0.78584509,94654.0,94653.0,0.12]
[1746473903740,0.2113498,94644.0,94643.0,0.06452]
[1746473903946,0.5721498,94644.0,94643.0,0.06452]
[1746473904137,0.2113521,94643.0,94633.0,0.0328]
[1746473904337,0.3061521,94643.0,94642.0,0.21293921]
[1746473904540,0.20046,94643.0,94615.0,0.00787847]
[1746473904738,0.2103878,94627.0,94626.0,0.2970334]
[1746473904943,0.2642271,94632.0,94631.0,0.2113764]
[1746473905246,0.2103827,94632.0,94631.0,0.3313764]
[1746473905635,0.2420827,94632.0,94631.0,0.3313764]
[1746473905836,0.2420827,94632.0,94631.0,0.3638764]
[1746473906042,0.0317,94632.0,94631.0,0.3638764]
[1746473906246,0.0307,94633.0,94632.0,0.2113767]
[1746473906447,0.0307,94633.0,94632.0,0.2743767]
[1746473907247,0.0307,94633.0,94632.0,0.3943767]
[1746473907640,0.0627,94633.0,94632.0,0.3943767]
[1746473907833,0.3608,94635.0,94634.0,0.2113722]
[1746473908244,0.2113482,94645.0,94643.0,0.2113521]
[1746473908845,0.391,94644.0,94643.0,0.2113521]
[1746473909150,0.391,94644.0,94643.0,0.3313521]
[1746473909541,0.391,94644.0,94643.0,0.3323521]
[1746473909946,0.391,94644.0,94643.0,0.3333521]
[1746473910143,0.3608,94644.0,94643.0,0.3333521]
[1746473911044,0.40447538,94644.0,94643.0,0.3333521]
[1746473915551,0.43497538,94644.0,94643.0,0.3333521]
[1746473917757,0.3913,94644.0,94643.0,0.3333521]
[1746473919255,0.6330498,94644.0,94643.0,0.3333521]
[1746473921357,0.6330498,94644.0,94643.0,0.122]
[1746473922151,0.64114406,94644.0,94643.0,0.122]
[1746473922452,0.74680406,94644.0,94643.0,0.122]
[1746473922750,0.99680406,94644.0,94643.0,0.122]
[1746473923158,0.99680406,94644.0,94643.0,0.002]
[1746473923359,0.74680406,94644.0,94643.0,0.002]
[1746473924257,0.79048494,94644.0,94643.0,0.002]
[1746473925352,0.2113834,94629.0,94628.0,0.06516]
[1746473925660,0.2113834,94629.0,94628.0,0.2113856]
[1746473925661,0.5721834,94629.0,94628.0,0.2113856]
[1746473925854,0.6250297,94629.0,94628.0,0.2113856]
[1746473926250,0.6866297,94629.0,94628.0,0.2113856]
[1746473927261,0.6866297,94629.0,94628.0,0.2153856]
[1746473927662,0.6866297,94629.0,94628.0,0.008]
[1746473927960,0.6866297,94629.0,94628.0,0.006]
[1746473928357,0.6866297,94629.0,94628.0,0.002]
[1746473928556,0.6866297,94629.0,94628.0,0.004]
[1746473928864,0.73031058,94629.0,94628.0,0.004]
[1746473930760,0.83598658,94629.0,94628.0,0.004]
[1746473931161,0.83598658,94629.0,94628.0,0.124]
[1746473932151,0.83598658,94629.0,94628.0,0.004]
[1746473939064,0.73031058,94629.0,94628.0,0.004]
[1746473941858,0.73031058,94629.0,94628.0,0.002]
[1746473942057,0.73431058,94629.0,94628.0,0.002]
[1746473943169,0.73431058,94629.0,94628.0,0.122]
[1746473943367,0.73931058,94629.0,94628.0,0.12]
[1746473944667,0.2114303,94609.0,94608.0,0.0528572]
[1746473944867,0.5722303,94609.0,94608.0,0.3285841]
[1746473945062,0.5722303,94609.0,94608.0,0.4485841]
[1746473946278,0.5722303,94609.0,94608.0,0.4804841]
[1746473946468,0.5722303,94609.0,94608.0,0.49563153]
[1746473947175,0.5722303,94609.0,94608.0,0.44277433]
[1746473947477,0.5732303,94609.0,94608.0,0.44277433]
[1746473947869,0.574228,94609.0,94608.0,0.44277433]
[1746473948172,0.3628,94609.0,94608.0,0.44277433]
[1746473949073,0.04568088,94609.0,94608.0,0.44277433]
[1746473951976,0.002,94609.0,94608.0,0.44277433]
[1746473964385,0.0456888,94609.0,94608.0,0.44277433]
[1746473970286,0.0456888,94609.0,94608.0,0.41127433]
[1746473979499,0.4064888,94609.0,94608.0,0.16704743]
[1746473979689,0.4064888,94609.0,94608.0,0.37847773]
[1746473980999,0.4668888,94609.0,94608.0,0.37847773]
[1746473984202,0.6783168,94609.0,94608.0,0.16704743]
[1746473984398,0.6783168,94609.0,94608.0,0.13514743]
[1746473984700,0.6783168,94609.0,94608.0,0.12]
[1746473985100,0.6783168,94609.0,94606.0,0.0652]
[1746473985101,0.2114303,94608.0,94606.0,0.0652]
[1746473985602,0.2751303,94608.0,94606.0,0.0652]
[1746473986103,0.2751303,94608.0,94562.0,0.57386638]
[1746473986104,0.2115085,94573.0,94562.0,0.57386638]
[1746473986292,0.5723085,94573.0,94572.0,0.02234782]
[1746473986490,0.5723085,94573.0,94572.0,0.00158608]
[1746473987090,0.4239,94573.0,94572.0,0.33309688]
[1746473987296,0.6354085,94573.0,94572.0,0.12158608]
[1746473988102,0.6354085,94573.0,94572.0,0.00858608]
[1746473988602,0.2115152,94570.0,94565.0,0.00105747]
[1746473988906,0.5825172,94573.0,94572.0,0.001]
[1746473989104,0.6557857,94573.0,94572.0,0.001]
[1746473989406,0.7615257,94573.0,94572.0,0.002]
[1746473989594,0.7615257,94573.0,94572.0,0.001]
[1746473989790,0.2115152,94570.0,94569.0,0.002]
[1746473990499,0.00774394,94570.0,94569.0,0.002]
[1746473990808,0.3914,94573.0,94572.0,0.2115108]
[1746473990991,0.6029085,94573.0,94572.0,0.2115108]
[1746473991191,0.6049085,94573.0,94572.0,0.3315108]
[1746473991395,0.6049085,94573.0,94572.0,0.3325108]
[1746473991796,0.61292858,94573.0,94572.0,0.3315108]
[1746473992407,0.61292858,94573.0,94572.0,0.3325108]
[1746473993399,0.40142008,94573.0,94572.0,0.3325108]
[1746473993606,0.3628,94573.0,94572.0,0.3325108]
[1746473993805,0.3628,94573.0,94572.0,0.3652108]
[1746473994502,0.3951,94573.0,94572.0,0.3652108]
[1746473995401,0.6066085,94573.0,94572.0,0.3652108]
[1746473996702,0.6066085,94573.0,94572.0,0.3325108]
[1746473997706,0.6066085,94573.0,94572.0,0.3657108]
[1746474000513,0.6066085,94573.0,94572.0,0.121]
[1746474000904,0.6066085,94573.0,94572.0,0.3325108]
[1746474004915,0.6378085,94573.0,94572.0,0.3325108]
[1746474005110,0.394,94573.0,94572.0,0.3325108]
[1746474005311,0.6055085,94573.0,94572.0,0.3325108]
[1746474008916,0.5743085,94573.0,94572.0,0.3325108]
[1746474012710,0.3628,94573.0,94572.0,0.3325108]
[1746474013414,0.002,94573.0,94572.0,0.3325108]
[1746474013624,0.002,94573.0,94572.0,0.3961108]
[1746474014013,0.2135085,94573.0,94572.0,0.1846]
[1746474014319,0.5743085,94573.0,94572.0,0.1846]
[1746474015319,0.3628,94573.0,94572.0,0.1846]
[1746474015620,0.3628,94573.0,94572.0,0.3961108]
[1746474017614,0.56656806,94573.0,94572.0,0.3961108]
[1746474017809,0.56656806,94573.0,94572.0,0.1846]
[1746474018014,0.56656806,94573.0,94572.0,0.3961108]
[1746474021927,0.3628,94573.0,94572.0,0.3961108]
[1746474026426,0.002,94573.0,94572.0,0.3961108]
[1746474027425,0.3628,94573.0,94572.0,0.3961108]
[1746474031223,0.40650874,94573.0,94572.0,0.3961108]
[1746474044938,0.3608,94588.0,94572.0,0.71609999]
[1746474045127,0.3608,94588.0,94587.0,0.2114772]
[1746474045331,0.3608,94588.0,94587.0,0.2764372]
[1746474045938,0.3608,94588.0,94587.0,0.3409372]
[1746474046240,0.3608,94588.0,94587.0,0.4609372]
[1746474046442,0.3618,94588.0,94587.0,0.4609372]
[1746474047237,0.3648,94588.0,94587.0,0.4609372]
[1746474048241,0.3678,94588.0,94587.0,0.4609372]
[1746474050142,0.007,94588.0,94587.0,0.4609372]
[1746474050542,0.007,94588.0,94587.0,0.5666612]
[1746474055844,0.004,94588.0,94587.0,0.5666612]
[1746474056035,0.18789547,94596.0,94595.0,0.2114593]
[1746474056344,0.18789547,94596.0,94595.0,0.3314593]
[1746474057348,0.18789547,94596.0,94595.0,0.3334593]
[1746474058747,0.18789547,94596.0,94595.0,0.3324593]
[1746474058949,0.18789547,94596.0,94595.0,0.3344593]
[1746474059339,0.18789547,94596.0,94595.0,0.3354593]
[1746474059539,0.18789547,94596.0,94595.0,0.3364593]
[1746474061948,0.13388768,94597.0,94596.0,0.2114571]
[1746474062149,0.13388768,94597.0,94596.0,0.2755571]
[1746474063043,0.13388768,94597.0,94596.0,0.2765571]
[1746474063243,0.13388768,94597.0,94596.0,0.3965571]
[1746474063439,0.13388768,94597.0,94596.0,0.3955571]
[1746474063640,0.13388768,94597.0,94596.0,0.3965571]
[1746474063845,0.13488768,94597.0,94596.0,0.3965571]
[1746474065643,0.13488768,94597.0,94596.0,0.3955571]
[1746474066457,0.04469242,94597.0,94596.0,0.3955571]
[1746474068654,0.04469242,94597.0,94596.0,0.18464]
[1746474068861,0.40549242,94597.0,94596.0,0.3960971]
[1746474069659,0.46887127,94597.0,94596.0,0.3960971]
[1746474070061,0.46887127,94597.0,94596.0,0.3314571]
[1746474070260,0.46887127,94597.0,94596.0,0.3960971]
[1746474070759,0.46887127,94597.0,94596.0,0.3314571]
[1746474070960,0.46887127,94597.0,94596.0,0.3960971]
[1746474072365,0.40549242,94597.0,94596.0,0.3960971]
[1746474073654,0.61694732,94597.0,94596.0,0.12]
[1746474074261,0.2114593,94595.0,94594.0,0.06464]
[1746474074854,0.2737593,94595.0,94594.0,0.06464]
[1746474075062,0.2737593,94595.0,94594.0,0.2761016]
[1746474075467,0.2747593,94595.0,94594.0,0.2761016]
[1746474075666,0.2747593,94595.0,94594.0,0.2771016]
[1746474077155,0.2777593,94595.0,94594.0,0.2761016]
[1746474077360,0.2807593,94595.0,94594.0,0.2761016]
[1746474078173,0.0693,94595.0,94594.0,0.2761016]
[1746474078369,0.2807593,94595.0,94594.0,0.2761016]
[1746474078964,0.0693,94595.0,94594.0,0.2761016]
[1746474079476,0.11299242,94595.0,94594.0,0.2761016]
[1746474080465,0.10899242,94595.0,94594.0,0.2761016]
[1746474080665,0.11299242,94595.0,94594.0,0.2761016]
[1746474081369,0.11199242,94595.0,94594.0,0.2761016]
[1746474082369,0.11099242,94595.0,94594.0,0.3961016]
[1746474082870,0.11099242,94595.0,94594.0,0.3314616]
[1746474083071,0.11099242,94595.0,94594.0,0.3961416]
[1746474083276,0.32245172,94595.0,94594.0,0.18468]
[1746474084067,0.11099242,94595.0,94594.0,0.2761416]
[1746474087167,0.11099242,94595.0,94594.0,0.3961416]
[1746474089468,0.11099242,94595.0,94594.0,0.4268416]
[1746474090075,0.11099242,94595.0,94594.0,0.4595416]
[1746474091777,0.04869242,94595.0,94594.0,0.4595416]
[1746474093780,0.04869242,94595.0,94594.0,0.4595016]
[1746474109704,0.20977059,94595.0,94594.0,0.4595016]
[1746474113094,0.04869242,94595.0,94594.0,0.4595016]
[1746474113497,0.08099242,94595.0,94594.0,0.4595016]
[1746474130309,0.29245172,94595.0,94594.0,0.18464]
[1746474131113,0.29245172,94595.0,94594.0,0.06464]
[1746474132807,0.29245172,94595.0,94594.0,0.2761016]
[1746474134200,0.08099242,94595.0,94594.0,0.2761016]
[1746474135206,0.32365172,94595.0,94594.0,0.2114616]
[1746474135512,0.0528741,94579.0,94573.0,0.066226]
[1746474135808,0.3064984,94578.0,94577.0,0.2114996]
[1746474136111,0.095,94578.0,94577.0,0.2114996]
[1746474137102,0.095,94578.0,94577.0,0.3334996]
[1746474137403,0.095,94578.0,94577.0,0.3344996]
[1746474138210,0.097,94578.0,94577.0,0.3334996]
[1746474138412,0.097,94578.0,94577.0,0.3314996]
[1746474139012,0.14069242,94578.0,94577.0,0.3314996]
[1746474141414,0.07899242,94578.0,94577.0,0.3956996]
[1746474141598,0.04369242,94578.0,94577.0,0.3956996]
[1746474141800,0.04669242,94578.0,94577.0,0.3956996]